Cogmind - Beta 9.4 @@@ ROGUE MODE // 2020.02.03 @ 22:48:28 Player: sideriver81 Result: Self-destructed Performance ------------- Evolutions (1) 500 Regions Visited (5) 1000 Robots Destroyed (11) 55 Value Destroyed (134) 134 Prototype IDs (0) 0 Alien Tech Used (0) 0 Bonus (0) 0 TOTAL SCORE: 1689 Bonus ------- None Cogmind --------- Core Integrity 343/400 Matter 300/300 Energy 121/125 System Corruption 0% Temperature Cool (4) Movement Flying (37) Location -9/Exiles Parts ------- > --- POWER (1) -------- Light Ion Engine > --- PROPULSION (3) --- Flight Unit Flight Unit Flight Unit > --- UTILITY (3) ------ Heat Sink Weight Redist. System > --- WEAPON (2) ------- Light Assault Rifle Maul > --- INVENTORY (4) ---- Flight Unit Flight Unit Medium Storage Unit Grenade Launcher Peak State ------------ > --- POWER ------------ Light Ion Engine > --- PROPULSION ------- Flight Unit Flight Unit Flight Unit > --- UTILITY ---------- Heat Sink Weight Redist. System > --- WEAPON ----------- Light Assault Rifle Maul > --- INVENTORY -------- Flight Unit Medium Storage Unit Grenade Launcher [Rating: 10] Favorites ----------- Power Light Ion Engine Engine Light Ion Engine Propulsion Flight Unit Treads Light Treads Leg Aluminum Leg Flight Unit Flight Unit Utility Heat Sink Device Heat Sink Storage Small Storage Unit Weapon Light Assault Rifle Energy Gun Small Laser Ballistic Gun Light Assault Rifle Launcher Grenade Launcher Impact Weapon Maul Build | -11 -10 -10 -9 -9 -9 ------- Run | Scr Mat Min Mat Min Exi Slots Evolved 2 | . . . 2 . . Power . | . . . . . . Propulsion 1 | . . . 1 . . Utility 1 | . . . 1 . . Weapon . | . . . . . . Parts Attached 18 | 3 5 4 3 3 . Power 2 | . 1 . . 1 . Engine 2 | . 1 . . 1 . Core . | . . . . . . Reactor . | . . . . . . Propulsion 7 | 3 2 1 1 . . Treads 3 | 3 . . . . . Leg . | . . . . . . Wheel . | . . . . . . Hover . | . . . . . . Flight 4 | . 2 1 1 . . Utility 2 | . 1 . 1 . . Device 2 | . 1 . 1 . . Storage . | . . . . . . Processor . | . . . . . . Hackware . | . . . . . . Protection . | . . . . . . Artifact . | . . . . . . Weapon 7 | . 1 3 1 2 . Energy Gun 2 | . 1 1 . . . Energy Cannon . | . . . . . . Ballistic Gun 2 | . . 1 . 1 . Ballistic Cannon . | . . . . . . Launcher 2 | . . 1 . 1 . Special Weapon . | . . . . . . Impact Weapon 1 | . . . 1 . . Slashing Weapon . | . . . . . . Piercing Weapon . | . . . . . . Special Melee Weapon . | . . . . . . Unidentified Prototypes . | . . . . . . Parts Lost 2 | . . 2 . . . Power . | . . . . . . Propulsion . | . . . . . . Utility . | . . . . . . Weapon 2 | . . 2 . . . Highest Loss Streak 2 | . . 2 . . . Average Slot Usage (%) 78 | . 60 82 77 87 88 Engine 9 | . 2 14 11 11 11 Treads 6 | . 22 . . . . Flight 24 | . 5 28 33 33 33 Device 14 | . 1 14 16 22 22 Energy Gun 9 | . 25 22 . . . Ballistic Gun 7 | . 2 . 11 10 11 Impact Weapon 5 | . . . 5 11 11 Naked Turns . | . . . . . . Heaviest Build 8 | 3 7 7 8 8 8 Greatest Support 8 | 3 8 8 8 8 8 Greatest Overweight (x) . | . . . . . . Average Overweight (x) . | . . . . . . Largest Inventory Capacity 6 | 6 4 4 4 4 4 Average Capacity 4 | 5 4 4 4 4 4 Most Carried 6 | 6 4 4 3 4 4 Average Carried 3 | 5 3 4 3 3 4 Final Capacity 4 | 4 4 4 4 4 4 Final Carried 4 | 4 4 4 3 4 4 Class Distribution -------------------- 61% | Scavenger-Mutant 38% | Mutant Dominant Class ---------------- Mutant | -10/Materials Mutant | -10/Mines Scavenger-Mutant | -9/Materials Scavenger-Mutant | -9/Mines Scavenger-Mutant | -9/Exiles Resources | -11 -10 -10 -9 -9 -9 ----------- Run | Scr Mat Min Mat Min Exi Matter Collected 415 | 200 72 53 . 90 . Remotely . | . . . . . . Salvage Created 142 | . 92 23 . 27 . Parts 15 | . 6 5 . 4 . Haulers Intercepted . | . . . . . . Recyclers Shooed . | . . . . . . Parts Field Recycled . | . . . . . . Retrieved Matter . | . . . . . . Parts Self-Destructed . | . . . . . . Prevented . | . . . . . . Kills | -11 -10 -10 -9 -9 -9 ------- Run | Scr Mat Min Mat Min Exi Combat Hostiles Destroyed 11 | . 4 3 . 4 . Guns 4 | . 4 . . . . AOE 7 | . . 3 . 4 . Classes Destroyed 2 | . 2 . . . . Swarmer 10 | . 3 3 . 4 . Grunt 1 | . 1 . . . . Best Kill Streak 4 | . 4 3 . 4 . Combat Bots Only 4 | . 4 3 . 4 . Max Kills in Single Turn 3 | . 1 3 . 2 . Gunslinging . | . . . . . . Exploded 3 | . . 3 . 2 . Melee . | . . . . . . Uniques/NPCs Destroyed . | . . . . . . Combat | -11 -10 -10 -9 -9 -9 -------- Run | Scr Mat Min Mat Min Exi Damage Taken 305 | . 147 70 33 55 . Core 85 | . 27 1 18 39 . Absorbed by Shields . | . . . . . . Core Remaining (%) 94 | 100 . 88 . . . Volleys Fired 14 | . 10 1 . 3 . Largest 2 | . 2 1 . 1 . Hottest 80 | . 80 30 . 30 . Shots Fired 23 | . 19 1 . 3 . Gun 19 | . 19 . . . . Cannon . | . . . . . . Launcher 4 | . . 1 . 3 . Special . | . . . . . . Kinetic . | . . . . . . Thermal 10 | . 10 . . . . Explosive 4 | . . 1 . 3 . Electromagnetic 9 | . 9 . . . . Robot Hit Streak 7 | . 7 3 . . . Robot Miss Streak 4 | . 4 . . . . Penetration Max . | . . . . . . Secondary Targets . | . . . . . . Shots Hit Robots 11 | . 10 1 . . . Core Hits 12 | . 5 3 . 4 . Critical Hits . | . . . . . . Critical Kills . | . . . . . . Critical Parts Destroyed . | . . . . . . Melee Attacks 4 | . . . . 4 . Impact 4 | . . . . 4 . Slashing . | . . . . . . Piercing . | . . . . . . Sneak Attacks . | . . . . . . Combat Hostiles . | . . . . . . Follow-up Attacks . | . . . . . . Damage Inflicted 372 | . 112 109 . 151 . Guns 112 | . 112 . . . . Cannons . | . . . . . . Explosions 260 | . . 109 . 151 . Melee . | . . . . . . Ramming . | . . . . . . Kinetic . | . . . . . . Thermal 44 | . 44 . . . . Explosive 260 | . . 109 . 151 . Electromagnetic 68 | . 68 . . . . Impact . | . . . . . . Slashing . | . . . . . . Piercing . | . . . . . . Highest Corruption . | . . . . . . Average Corruption . | . . . . . . Corruption Purged . | . . . . . . Overload Shots . | . . . . . . Overflow Damage . | . . . . . . Projectiles . | . . . . . . Explosions . | . . . . . . Melee . | . . . . . . Knockbacks . | . . . . . . Impact . | . . . . . . Kinetic . | . . . . . . Secondary . | . . . . . . Self-Inflicted Damage 3 | . . 3 . . . Shots 1 | . . 1 . . . Rammed . | . . . . . . Targets Rammed . | . . . . . . Kicked . | . . . . . . Crushed . | . . . . . . Highest Temperature 61 | . 61 . . . . Average Temperature 25 | . 25 . . . . Received Heat Transfer 57 | . 36 . 9 12 . Siege Activations . | . . . . . . Robots Corrupted . | . . . . . . Combat Hostiles . | . . . . . . Parts Fried . | . . . . . . Impact Corruptions . | . . . . . . Robots Melted . | . . . . . . Combat Hostiles . | . . . . . . Parts Melted . | . . . . . . Heat Transferred 100 | . 100 . . . . Parts Sabotaged . | . . . . . . Parts Stolen . | . . . . . . Parts Stripped . | . . . . . . Power Chain Reactions . | . . . . . . Missiles Intercepted . | . . . . . . Alert | -11 -10 -10 -9 -9 -9 ------- Run | Scr Mat Min Mat Min Exi Peak Influence 170 | . 170 136 59 127 . Average Influence 85 | . 72 114 48 103 . Maximum Alert Level . | . . . . . . Low Security (%) 100 | 100 100 100 100 100 . Level 1 . | . . . . . . Level 2 . | . . . . . . Level 3 . | . . . . . . Level 4 . | . . . . . . Level 5 . | . . . . . . High Security . | . . . . . . Max Security . | . . . . . . Squads Dispatched 1 | . 1 . . . . Investigation . | . . . . . . Extermination . | . . . . . . Reinforcement 1 | . 1 . . . . Assault . | . . . . . . Garrison . | . . . . . . Intercept . | . . . . . . Construction Impeded . | . . . . . . Haulers Reinforced . | . . . . . . Stealth | -11 -10 -10 -9 -9 -9 --------- Run | Scr Mat Min Mat Min Exi Distress Signals . | . . . . . . Communications Jammed . | . . . . . . Distress Signals . | . . . . . . Times Spotted 28 | . 11 7 1 9 . Peak Tracking Total 7 | . 7 3 1 5 . Tactical Retreats 3 | . 2 1 . . . Traps | -11 -10 -10 -9 -9 -9 ------- Run | Scr Mat Min Mat Min Exi Traps Triggered . | . . . . . . Indirectly . | . . . . . . Trap Hack Attempts . | . . . . . . Triggered . | . . . . . . Disarmed . | . . . . . . Reprogrammed . | . . . . . . Reused . | . . . . . . Traps Extracted . | . . . . . . Installed . | . . . . . . Triggered . | . . . . . . Machines | -11 -10 -10 -9 -9 -9 ---------- Run | Scr Mat Min Mat Min Exi Machines Disabled . | . . . . . . Max in Single Turn . | . . . . . . Machines Sabotaged . | . . . . . . Garrisons Compromised . | . . . . . . Overloaded Fab Kills . | . . . . . . Fab Network Shutdowns . | . . . . . . Hacking | -11 -10 -10 -9 -9 -9 --------- Run | Scr Mat Min Mat Min Exi Machines Accessed 5 | . 2 . 2 1 . Terminals 4 | . 2 . 1 1 . Fabricators . | . . . . . . Repair Stations . | . . . . . . Recycling Units 1 | . . . 1 . . Scanalyzers . | . . . . . . Garrison Access . | . . . . . . Total Hacks 10 | . 5 . 4 1 . Successful 5 | . 2 . 3 . . Failed 5 | . 3 . 1 1 . Catastrophic 2 | . 2 . . . . Database Lockouts . | . . . . . . Manual 6 | . 3 . 2 1 . Terminals 8 | . 5 . 2 1 . Fabricators . | . . . . . . Repair Stations . | . . . . . . Recycling Units 2 | . . . 2 . . Scanalyzers . | . . . . . . Garrison Access . | . . . . . . Terminal Hacks 2 | . 1 . 1 . . Locate Traps 2 | . 1 . 1 . . Fabricator Hacks . | . . . . . . Repair Station Hacks . | . . . . . . Recycling Unit Hacks 2 | . . . 2 . . Report Inventory 1 | . . . 1 . . Retrieve Components 1 | . . . 1 . . Scanalyzer . | . . . . . . Garrison Access Hacks . | . . . . . . Unauthorized Hacks 2 | . 2 . . . . Terminals 1 | . 1 . . . . Botnet 1 | . 1 . . . . Fabricators . | . . . . . . Repair Stations . | . . . . . . Recycling Units . | . . . . . . Scanalyzers . | . . . . . . Garrison Access . | . . . . . . Data Cores Recovered . | . . . . . . Used . | . . . . . . Hacking Detections 5 | . 2 . 2 1 . Full Trace Events . | . . . . . . Feedback Events . | . . . . . . Feedback Blocked . | . . . . . . Robot Schematics Acquired . | . . . . . . Robots Built . | . . . . . . Matter . | . . . . . . Time . | . . . . . . Total Robot Build Rating . | . . . . . . Part Schematics Acquired . | . . . . . . Parts Built . | . . . . . . Matter . | . . . . . . Time . | . . . . . . Total Part Build Rating . | . . . . . . Parts Repaired . | . . . . . . Time . | . . . . . . Parts Recycled . | . . . . . . Recycled Matter . | . . . . . . Retrieved Matter . | . . . . . . Retrieved Components 2 | . . . 2 . . Parts Scanalyzed . | . . . . . . Part Schematics Acquired . | . . . . . . Parts Damaged . | . . . . . . Bothacking | -11 -10 -10 -9 -9 -9 ------------ Run | Scr Mat Min Mat Min Exi Used RIF Installer . | . . . . . . Robots Hacked . | . . . . . . Non-combat . | . . . . . . Combat . | . . . . . . Robot Hacks Applied . | . . . . . . Relay Couplers Released . | . . . . . . Robots Rewired . | . . . . . . Allies Hacked . | . . . . . . Hacks Repelled . | . . . . . . Allies | -11 -10 -10 -9 -9 -9 -------- Run | Scr Mat Min Mat Min Exi Total Allies . | . . . . . . Largest Group . | . . . . . . Highest-Rated Group . | . . . . . . Highest-Rated Ally . | . . . . . . Total Orders . | . . . . . . Ally Attacks . | . . . . . . Total Damage . | . . . . . . Kills . | . . . . . . Allies Corrupted . | . . . . . . Allies Melted . | . . . . . . Intel | -11 -10 -10 -9 -9 -9 ------- Run | Scr Mat Min Mat Min Exi Robot Analysis Total . | . . . . . . Derelict Logs Recovered 2 | . . 1 . 1 . Drone Launches . | . . . . . . Drone Recoveries . | . . . . . . Exploration | -11 -10 -10 -9 -9 -9 ------------- Run | Scr Mat Min Mat Min Exi Turns Passed 411 | 8 105 48 59 166 25 Spaces Moved 824 | 1 119 104 147 386 67 Core 95 | 1 94 . . . . Treads . | . . . . . . Legs . | . . . . . . Wheels . | . . . . . . Hover . | . . . . . . Flight 729 | . 25 104 147 386 67 Fastest Speed 37 | 50 37 37 37 37 37 Average Speed 38 | 50 47 37 37 37 37 Slowest Speed 50 | 50 50 37 37 37 37 Overloaded Moves . | . . . . . . Propulsion Burnouts . | . . . . . . Robots Hopped 6 | . 1 4 . 1 . Cave-ins Triggered . | . . . . . . Exploration Rate (%) 32 | 2 32 27 17 89 30 Regions Visited 5 Branch Regions 3 Pre-discovered Areas . | . . . . . . Known Exits Taken . | . . . . . . Unknown Exits Taken 5 | 1 1 1 1 1 . Scrap Searched 2 | . . . . 2 . Spaces Dug 2 | . . . . 2 . Terrain Destroyed 35 | . . 12 . 23 . Melee 2 | . . . . 2 . Projectile . | . . . . . . AOE 33 | . . 12 . 21 . Actions | -11 -10 -10 -9 -9 -9 --------- Run | Scr Mat Min Mat Min Exi Total 877 | 8 149 107 149 397 67 Wait 6 | . 6 . . . . Move 807 | . 116 95 146 383 67 Hop 6 | . 1 4 . 1 . Pick Up 7 | . 6 . . 1 . Fast Attach 5 | . 1 2 2 . . Attach 5 | . 3 . 1 1 . Detach 3 | 1 . 1 . 1 . Swap 8 | 3 1 2 . 2 . Drop 12 | 4 5 2 . 1 . Fire 14 | . 10 1 . 3 . Melee 4 | . . . . 4 . Ram . | . . . . . . Kick . | . . . . . . Crush . | . . . . . . Escape Stasis . | . . . . . . Rewire . | . . . . . . Trap . | . . . . . . Miscellaneous . | . . . . . . Route ------- -11/Scrapyard -10/Materials -10/Mines -9/Materials -9/Mines (discovered 2 exits: [*Mat] / [*Exi]) -9/Exiles History --------- Turn | Location | Event 9 | -11/Scrapyard | Discovered new exit (range 0) 9 | -11/Scrapyard | Entered Materials 111 | -10/Materials | Discovered new exit (range 7) 114 | -10/Materials | Entered Mines 156 | -10/Mines | Discovered new exit (range 6) 162 | -10/Mines | Entered Materials 162 | -9/Materials | Evolved 2 slots: Propulsion x1, Utility x1 211 | -9/Materials | Discovered new exit (range 16) 221 | -9/Materials | Entered Mines 224 | -9/Mines | Learned location of 1 exit from Materials 265 | -9/Mines | Discovered new exit (range 5) 365 | -9/Mines | Joined a pair of Derelicts in attacking an 0b10 outpost 386 | -9/Mines | Deemed a non-threat by the Exiles lab entrance 386 | -9/Mines | Discovered new exit (range 5) 387 | -9/Mines | Entered Exiles 387 | -9/Exiles | Found Exiles lab abandoned 412 | -9/Exiles | Self-destructed Last Messages --------------- 00279_ U-05 Engineer builds a Wall. 00309_ Acquired 35 matter. 00312_ K-01 Serf collects debris. 00321_ Connecting with Terminal... 00321_ Current location identified: Mines 00353_ Searching scrap... 00353_ Found 44 Matter. 00353_ Found Hover Unit. 00353_ Found Hrd. Light Armor Plating. 00353_ Found Hpw. Tractor Beam. 00354_ Acquired 14 matter. 00365_ A derelict emerges from the shadows: "We've had our eye on this brand new outpost for a little while, just waiting for an opportunity to strike. Need some help?" 00369_ B-36 Bruiser destroyed. 00381_ K-01 Serf collects debris. 00386_ "No threat detected, you may enter." 00386_ EXIT=FOUND LOCATION=UNKNOWN GOAL=ESCAPE Map ----- +----------------------------------------------------+ | ?????????????????????????????????????????????????? | | ?????????????????????????????????????????????????? | | ?????????????????????????????????????????????????? | | ?????????????????????????????????????????????????? | | ?????????????????????????????????????????????????? | | ?????????????????????????????????????????????????? | | ?????????????????????????????????????????????????? | | ?????????????????????????????????????????????????? | | ?????????????????????????????????????????????????? | | ?????????????????????????????????????????????????? | | ??????????????????????? ??????????????????????? | | ?????????????????????# ###???????????????????? | | ?????????????????????" ????????????????? | | ?????????????????????" "??????????????? | | ?????????????????????" ???????????????? | | ????????????????????#" ????????????????? | | ????????????????????#" ????????????????? | | ?????????????????????" ?????????????????? | | ?????????????????????# ??????????????????? | | ?????????????????????# ???????????????????? | | ?????????????????????#" ???????????????????? | | ?????????????????????#" ????????????????????? | | ?????????????????????#" ?????????????????????? | | ????????????????????##" #?????????????????????? | | ???????????????????##"" #?????????????????????? | | ??????????????????##"" @ #?????????????????????? | | ?????????????????""""" ##????????????????????? | | ????????????????" " "" ##???###########?????? | | ???????????????"" " #####"""""""""##????? | | ?????????????? " " """ """"##???? | | ????????????? "" " #???? | | ????????????? " """#???? | | ????????????? " "#???? | | ????????????? " "##??? | | ????????????? ""###? | | ?????????????? """""" """#? | | ?????????????? ######""" "#? | | ???????????????""#?????#####""" ## | | ???????????????????????????##""" # | | ????????????????????????????#"""" | | ????????????????????????????#"" | | ?????????????????????????????""" | | ????????????????????????????? | | ????????????????????????????? | | ????????????????????????????? | | ????????????????????????????? | | ?????????????????????????????? " # | | ??????????????????????????????? """ ""# | | ???????????????????????????????? " ""#" "## | | ?????????????????????????????????" ???##"""""""##? | +----------------------------------------------------+ Best States ------------- Heat Dissipation 38 Energy Generation 10 Energy Capacity 125 Matter Stores 300 Matter Capacity 300 Sight Range 16 Terrain Scan Density 10 Evasion (%) 62 Item Schematics ----------------- None Robot Schematics ------------------ None Fabricated ------------ Nothing Alien Tech Used ----------------- None Achievements -------------- None Challenges ------------ None Game ------ Seed WaveMolecularSystem Manual? 0 Play Time 00:09:44 Cumulative 296.8 hours Start 2020.02.03 @ 22:38:51 End 2020.02.03 @ 22:48:28 Sessions 1 Manual Loads 0 Difficulty Rogue Special Mode None Game No. 114 Rogue 36 Adventurer 48 Explorer 30 Win Type - Total 46 Types 30/5/4/2/2/1/2 Lore% 98 Gallery% 100 Achievement% 88 Wizard Run 0 Options --------- ASCII 0 Keyboard 0 Movement Numpad Keybinds 1 Fullscreen 0 Font 18/Terminus Map View 76x50 Tactical HUD 1 Map Filters NONE Filters NONE Steam 1 RUN: dc26f0ec-9a17-4280-ad99-588d69372460